fUSD/lending_fUSD_20250426
["ID","MTS","AMOUNT","RATE_DAILY","PERIOD"]
[359023349,1745657434624,-793.69,0.0001997,2]
[359023350,1745657434634,-500.0,0.0001997,2]
[359023351,1745657434643,-1924.43,0.0001997,2]
[359023352,1745657434653,-1057.25,0.0001997,2]
[359023353,1745657434664,-557.52736495,0.0001997,2]
[359023354,1745657434674,-183888.80972059,0.0001997,2]
[359023355,1745657434714,-150.0,0.00019794,2]
[359023356,1745657434724,-150.0,0.00019929,2]
[359023357,1745657434734,-2181.55877801,0.0001997,2]
[359023358,1745657437500,-150.0,0.00019733,2]
[359023359,1745657437513,-150.0,0.00019753,2]
[359023360,1745657437529,-2.15717146,0.00019826,2]
[359023531,1745657439640,-147.84282854,0.00019826,2]
[359023532,1745657439652,-150.0,0.00019875,2]
[359023533,1745657439665,-150.0,0.0001991,2]
[359023534,1745657439678,-150.0,0.00019967,2]
[359023535,1745657439690,-500.0,0.00019969,2]
[359023536,1745657439703,-216.34717358,0.00019969,2]
[359023537,1745657439715,-500.0,0.00019969,2]
[359023538,1745657439727,-500.0,0.00019969,2]
[359023539,1745657439740,-500.0,0.00019969,2]
[359023540,1745657439752,-338.64852383,0.00019969,2]
[359023541,1745657439764,-500.0,0.00019969,2]
[359023542,1745657439777,-868.75,0.00019969,2]
[359023543,1745657439790,-500.0,0.00019969,2]
[359023544,1745657439801,-500.0,0.00019969,2]
[359023545,1745657439813,-500.0,0.00019969,2]
[359023546,1745657439825,-7338.98519683,0.0001997,2]
[359023547,1745657439896,-150.0,0.00019738,2]
[359023548,1745657439908,-1738.98,0.0001997,2]
[359023549,1745657439928,-3403.65076831,0.0001997,2]
[359023550,1745657440100,-797.6518777,0.0001997,2]
[359023569,1745657442883,-500.0,0.00019969,2]
[359023570,1745657442893,-91851.33399999,0.0001997,2]
[359023571,1745657442936,-8625.29965857,0.0001997,2]
[359023572,1745657442945,-124.70034142,0.0001997,2]
[359023610,1745657445485,-734.23,0.00019969,2]
[359023612,1745657445495,-500.0,0.00019969,2]
[359023614,1745657445504,-778.03,0.00019969,2]
[359023616,1745657445514,-375.29965858,0.0001997,2]
[359023618,1745657445524,-500.0,0.0001997,2]
[359023620,1745657445533,-500.0,0.0001997,2]
[359023622,1745657445542,-980.87,0.0001997,2]
[359023623,1745657445552,-500.0,0.0001997,2]
[359023625,1745657445561,-1244.24,0.0001997,2]
[359023627,1745657445570,-754.06,0.0001997,2]
[359023629,1745657445580,-641.73,0.0001997,2]
[359023631,1745657445589,-562.94,0.0001997,2]
[359023633,1745657445598,-500.0,0.0001997,2]
[359023635,1745657445608,-500.0,0.0001997,2]
[359023637,1745657445617,-119.80034142,0.0001997,2]
[359023639,1745657445629,-866.66965858,0.0001997,2]
[359023641,1745657445639,-464.42234549,0.0001997,2]
[359023643,1745657445651,-35.57765451,0.0001997,2]
[359023645,1745657445661,-500.0,0.0001997,2]
[359023647,1745657445670,-500.0,0.0001997,2]
[359023649,1745657445680,-500.0,0.0001997,2]
[359023650,1745657445689,-773.69,0.0001997,2]
[359023652,1745657445700,-387.99106997,0.0001997,2]
[359023653,1745657445711,-528.52893003,0.0001997,2]
[359023654,1745657445720,-415.47106997,0.0001997,2]
[359023655,1745657445754,-212.26893003,0.0001997,2]
[359023656,1745657445764,-1534.95,0.0001997,2]
[359023657,1745657445773,-812.60487018,0.0001997,2]
[359023658,1745657445785,-140.87512982,0.0001997,2]
[359023659,1745657445795,-500.0,0.0001997,2]
[359023660,1745657445805,-1107.52,0.0001997,2]
[359023661,1745657445814,-561.43,0.0001997,2]
[359023662,1745657445824,-500.0,0.0001997,2]
[359023663,1745657445833,-500.0,0.0001997,2]
[359023664,1745657445843,-113.34479318,0.0001997,2]
[359023665,1745657445896,-386.65520682,0.0001997,2]
[359023666,1745657445909,-500.0,0.0001997,2]
[359023667,1745657445919,-528.47,0.0001997,2]
[359023669,1745657445929,-2378.33,0.0001997,2]
[359023671,1745657445939,-1100.98,0.0001997,2]
[359023673,1745657445948,-779.24046173,0.0001997,2]
[359023674,1745657445960,-213.15953827,0.0001997,2]
[359023675,1745657445971,-500.0,0.0001997,2]
[359023677,1745657445981,-607.55,0.0001997,2]
[359023679,1745657445991,-680.14,0.0001997,2]
[359023681,1745657446002,-500.0,0.0001997,2]
[359023682,1745657446012,-500.0,0.0001997,2]
[359023684,1745657446021,-500.0,0.0001997,2]
[359023685,1745657446032,-822.14,0.0001997,2]
[359023686,1745657446041,-500.0,0.0001997,2]
[359023687,1745657446050,-500.0,0.0001997,2]
[359023688,1745657446060,-562.68,0.0001997,2]
[359023689,1745657446070,-252.87870776,0.0001997,2]
[359023715,1745657460241,-247.12129224,0.0001997,2]
[359023716,1745657460252,-500.0,0.0001997,2]
[359023717,1745657460262,-784.69,0.0001997,2]
[359023718,1745657460273,-500.0,0.0001997,2]
[359023719,1745657460284,-1247.08,0.0001997,2]
[359023720,1745657460296,-746.38,0.0001997,2]
[359023721,1745657460306,-1054.07,0.0001997,2]
[359023722,1745657460316,-1314.64,0.0001997,2]
[359023723,1745657460326,-1537.58,0.0001997,2]
[359023724,1745657460336,-560.18,0.0001997,2]
[359023725,1745657460346,-500.0,0.0001997,2]
[359023726,1745657460356,-1524.12,0.0001997,2]
[359023727,1745657460366,-500.0,0.0001997,2]
[359023728,1745657460377,-749.12,0.0001997,2]
[359023729,1745657460387,-651.09,0.0001997,2]
[359023730,1745657460396,-797.45,0.0001997,2]
[359023731,1745657460406,-5174.09,0.0001997,2]
[359023732,1745657460415,-999.58,0.0001997,2]
[359023733,1745657460425,-828.45,0.0001997,2]
[359023734,1745657460435,-1046.79,0.0001997,2]
[359023735,1745657460445,-500.0,0.0001997,2]
[359023736,1745657460454,-500.0,0.0001997,2]
[359023737,1745657460464,-529.32,0.0001997,2]
[359023738,1745657460475,-500.0,0.0001997,2]
[359023739,1745657460485,-500.0,0.0001997,2]
[359023740,1745657460495,-213.33523122,0.0001997,2]
[359023741,1745657460506,-902.57,0.0001997,2]
[359023742,1745657460516,-1328.75,0.0001997,2]
[359023743,1745657460526,-880.5,0.0001997,2]
[359023744,1745657460537,-1000.0,0.00019971,2]
[359023745,1745657460550,-500.0,0.00019971,2]
[359023746,1745657460560,-500.0,0.00019971,2]
[359023747,1745657460570,-500.0,0.00019971,2]
[359023748,1745657460580,-500.0,0.00019971,2]
[359023749,1745657460591,-500.0,0.00019971,2]
[359023750,1745657460601,-914.45,0.00019971,2]
[359023751,1745657460612,-500.0,0.00019971,2]
[359023752,1745657460622,-500.0,0.00019971,2]
[359023753,1745657460632,-500.0,0.00019971,2]
[359023754,1745657460642,-500.0,0.00019971,2]
[359023755,1745657460652,-216.54221764,0.00019971,2]
[359023756,1745657460662,-500.0,0.00019971,2]
[359023757,1745657460672,-500.0,0.00019971,2]
[359023758,1745657460681,-500.0,0.00019971,2]
[359023759,1745657460691,-624.67,0.00019971,2]
[359023760,1745657460700,-947.33,0.00019971,2]
[359023761,1745657460710,-500.0,0.00019971,2]
[359023762,1745657460811,-500.0,0.00019971,2]
[359023763,1745657460822,-500.0,0.00019971,2]
[359023764,1745657460831,-500.0,0.00019971,2]
[359023765,1745657460841,-1028.98,0.00019971,2]
[359023766,1745657460850,-500.0,0.00019971,2]
[359023767,1745657460859,-1110.7,0.00019971,2]
[359023768,1745657460868,-1263.5,0.00019971,2]
[359023769,1745657460878,-530.51,0.00019971,2]
[359023770,1745657460888,-865.35,0.00019971,2]
[359023771,1745657460897,-500.0,0.00019973,2]
[359023772,1745657460907,-500.0,0.00019973,2]
[359023773,1745657460916,-877.0,0.00019982,2]
[359023774,1745657460925,-872.0,0.00019982,2]
[359023775,1745657460934,-487.064,0.00019982,2]
[359023776,1745657460943,-3991.0,0.00019982,2]
[359023777,1745657460953,-200.859,0.00019982,2]
[359023778,1745657460962,-250.0,0.00019982,2]
[359023779,1745657460972,-257.141,0.00019982,2]
[359023780,1745657460981,-6193.0,0.00019982,2]
[359023781,1745657460990,-1135.0,0.00019982,2]
[359023782,1745657460999,-500.0,0.00019985,2]
[359023783,1745657461009,-581.91,0.00019985,2]
[359023784,1745657461018,-500.0,0.00019985,2]
[359023785,1745657461027,-908.59,0.00019985,2]
[359023786,1745657461037,-500.0,0.00019985,2]
[359023787,1745657461047,-1343.66,0.00019985,2]
[359023788,1745657461056,-500.0,0.00019985,2]
[359023789,1745657461065,-801.41,0.00019985,2]
[359023790,1745657461075,-702.24,0.00019985,2]
[359023791,1745657461084,-1484.02082482,0.00019985,2]
[359023792,1745657461597,-183.87917518,0.00019985,2]
[359023793,1745657461606,-908.35,0.00019985,2]
[359023794,1745657461615,-500.0,0.00019985,2]
[359023795,1745657461625,-604.1,0.00019985,2]
[359023796,1745657461635,-555.08,0.00019985,2]
[359023797,1745657461644,-1247.65,0.00019985,2]
[359023798,1745657461654,-500.0,0.00019985,2]
[359023799,1745657461663,-758.42,0.00019985,2]
[359023800,1745657461672,-501.11428982,0.00019985,2]
[359023801,1745657461682,-500.0,0.00019985,2]
[359023802,1745657461691,-500.0,0.00019985,2]
[359023803,1745657461700,-500.0,0.00019985,2]
[359023804,1745657461710,-500.0,0.00019985,2]
[359023805,1745657461719,-5844.29989395,0.00019986,2]
[359023806,1745657520077,1000.0,0.00019085,2]
[359023807,1745657644024,5000.0,0.00018905,2]
[359023808,1745657865582,23900.0,0.0001886,2]
[359023809,1745657866414,2268.21,0.0001886,2]
[359023810,1745658009925,152.37,0.00018811,2]
[359023815,1745658140911,187.18,0.0001879,2]
[359023816,1745658231681,9993.0,0.00037808,60]
[359023817,1745658273231,1088.56,0.00016852,2]
[359023818,1745658273519,1088.56,0.00019115,2]
[359023819,1745658285575,168.90224753,0.00019,32]
[359023831,1745658361798,250.0,0.00018769,2]
[359024215,1745658631816,-166.66,0.00019332,2]
[359024216,1745658631826,-250.0,0.0001951,2]
[359024217,1745658631835,-151.0,0.00019688,2]
[359024218,1745658631845,-207.4,0.00019688,2]
[359024219,1745658631855,-1200.0,0.00019698,2]
[359024220,1745658631865,-64.21492302,0.00019699,2]
[359024221,1745658631876,-365.19994533,0.00019699,2]
[359024222,1745658632001,-312.5,0.00019699,2]
[359024223,1745658632013,-948.9,0.00019699,2]
[359024233,1745658632123,-809.18513165,0.00019699,2]
[359024234,1745658632133,-1000.0,0.00019699,2]
[359024236,1745658632143,-300.0,0.00019699,2]
[359024239,1745658632153,-20316.2759,0.000197,2]
[359024241,1745658632165,-500.0,0.000197,2]
[359024243,1745658632175,-1232.74589627,0.000197,2]
[359024245,1745658632184,-736.31206913,0.000197,2]
[359024247,1745658632194,-1232.74589627,0.00019702,2]
[359024249,1745658632204,-3499.13599808,0.00019704,2]
[359024252,1745658632214,-1232.74589627,0.00019704,2]
[359024255,1745658632223,-3499.13599807,0.00019726,2]
[359024258,1745658632232,-150.0,0.00019731,2]
[359024261,1745658632242,-150.0,0.00019732,2]
[359024263,1745658632251,-150.0,0.00019736,2]
[359024266,1745658632261,-150.0,0.00019737,2]
[359024269,1745658632271,-150.0,0.00019738,2]
[359024272,1745658632280,-150.0,0.0001974,2]
[359024275,1745658632289,-150.0,0.00019742,2]
[359024278,1745658632299,-201.06135348,0.00019743,2]
[359024281,1745658632308,-150.0,0.00019744,2]
[359024284,1745658632318,-150.0,0.00019744,2]
[359024286,1745658632327,-3499.13599807,0.00019748,2]
[359024289,1745658632337,-150.0,0.0001975,2]
[359024292,1745658632347,-150.0,0.0001975,2]
[359024295,1745658632357,-150.0,0.00019752,2]
[359024298,1745658632367,-150.0,0.00019753,2]
[359024300,1745658632377,-150.0,0.00019754,2]
[359024303,1745658632386,-1106.15736489,0.00019759,2]
[359024306,1745658632395,-150.0,0.00019761,2]
[359024309,1745658632405,-150.0,0.00019762,2]
[359024311,1745658632414,-150.0,0.00019763,2]
[359024313,1745658632425,-150.0,0.00019765,2]
[359024315,1745658632435,-150.0,0.00019765,2]
[359024317,1745658632445,-150.0,0.00019768,2]
[359024319,1745658632454,-150.0,0.00019769,2]
[359024321,1745658632463,-203.44004562,0.00019769,2]
[359024323,1745658632473,-3499.13599807,0.00019769,2]
[359024325,1745658632483,-150.0,0.00019771,2]
[359024327,1745658632492,-150.0,0.00019772,2]
[359024329,1745658632502,-167.08617438,0.00019773,2]
[359024331,1745658632512,-165.77920807,0.00019773,2]
[359024333,1745658632521,-159.98710487,0.00019773,2]
[359024335,1745658632531,-500.0,0.00019773,2]
[359024336,1745658632540,-157.83682965,0.00019773,2]
[359024337,1745658632550,-159.93929853,0.00019773,2]
[359024338,1745658632560,-500.0,0.00019773,2]
[359024339,1745658632569,-500.0,0.00019773,2]
[359024340,1745658632579,-500.0,0.00019773,2]
[359024341,1745658632589,-500.0,0.00019773,2]
[359024342,1745658632599,-500.0,0.00019773,2]
[359024343,1745658632608,-500.0,0.00019773,2]
[359024344,1745658632618,-159.71085133,0.00019773,2]
[359024345,1745658632628,-607.62589314,0.00019773,2]
[359024346,1745658632638,-280.82120578,0.00019773,2]
[359024347,1745658632651,-182.12115987,0.00019773,2]
[359024348,1745658632661,-359.31890052,0.00019773,2]
[359024349,1745658632670,-150.0,0.00019774,2]
[359024350,1745658632681,-150.0,0.00019775,2]
[359024351,1745658632690,-150.0,0.00019775,2]
[359024352,1745658632699,-150.0,0.00019777,2]
[359024353,1745658632708,-668.65185757,0.00019788,2]
[359024354,1745658632718,-150.0,0.00019791,2]
[359024355,1745658632728,-3499.13599807,0.00019791,2]
[359024356,1745658632737,-150.0,0.00019792,2]
[359024357,1745658632746,-150.0,0.00019792,2]
[359024358,1745658632755,-150.0,0.00019798,2]
[359024359,1745658632765,-500.0,0.00019798,2]
[359024360,1745658632775,-810.68,0.00019798,2]
[359024361,1745658632785,-557.67,0.00019798,2]
[359024362,1745658632794,-643.07,0.00019798,2]
[359024363,1745658632803,-500.0,0.00019798,2]
[359024364,1745658632813,-1143.95,0.00019798,2]
[359024365,1745658632822,-870.74,0.00019798,2]
[359024366,1745658632831,-500.0,0.00019798,2]
[359024367,1745658632841,-864.24,0.00019798,2]
[359024368,1745658632852,-1287.67,0.00019798,2]
[359024369,1745658632861,-991.4,0.00019798,2]
[359024370,1745658632870,-500.0,0.00019798,2]
[359024371,1745658632880,-979.35,0.00019798,2]
[359024372,1745658632889,-768.02,0.00019798,2]
[359024373,1745658632899,-954.09,0.00019798,2]
[359024374,1745658632909,-672.98,0.00019798,2]
[359024375,1745658632918,-1598.41,0.00019798,2]
[359024376,1745658632928,-1066.71,0.00019798,2]
[359024377,1745658632937,-870.5,0.00019798,2]
[359024378,1745658632947,-578.93,0.00019798,2]
[359024379,1745658632956,-570.67715616,0.00019798,2]
[359024380,1745658632965,-500.0,0.00019798,2]
[359024381,1745658632974,-7883.49006564,0.00019798,2]
[359024382,1745658633018,-1166.26282641,0.00019798,2]
[359024383,1745658633140,-2284.33710795,0.00019798,2]
[359024384,1745658633151,-531.96,0.00019798,2]
[359024385,1745658633161,-500.0,0.00019798,2]
[359024386,1745658633171,-1195.67,0.00019798,2]
[359024387,1745658633181,-726.82,0.00019798,2]
[359024388,1745658633192,-500.0,0.00019798,2]
[359024389,1745658633212,-705.7,0.00019798,2]
[359024390,1745658633224,-500.0,0.00019798,2]
[359024391,1745658633235,-1158.91,0.00019798,2]
[359024392,1745658633246,-500.0,0.00019798,2]
[359024393,1745658633257,-500.0,0.00019798,2]
[359024394,1745658633268,-500.0,0.00019798,2]
[359024395,1745658633279,-500.0,0.00019798,2]
[359024396,1745658633292,-164.438316,0.00019798,2]
[359024397,1745658633303,-500.0,0.00019798,2]
[359024398,1745658633314,-500.0,0.00019798,2]
[359024399,1745658633325,-1149.2357225,0.00019799,2]
[359024400,1745658633336,-199.09651937,0.00019799,2]
[359024401,1745658633353,-310.84659303,0.00019799,2]
[359024402,1745658633364,-500.0,0.00019799,2]
[359024403,1745658633374,-364.37558562,0.00019799,2]
[359024404,1745658633386,-500.0,0.00019799,2]
[359024405,1745658633397,-500.0,0.00019799,2]
[359024406,1745658633408,-500.0,0.00019799,2]
[359024407,1745658633419,-2085.859,0.00019799,2]
[359024408,1745658633430,-167.201,0.00019799,2]
[359024409,1745658633440,-500.0,0.00019799,2]
[359024410,1745658633450,-336.61410881,0.00019799,2]
[359024411,1745658633461,-500.0,0.00019799,2]
[359024412,1745658633471,-500.0,0.00019799,2]
[359024413,1745658633752,-500.0,0.00019799,2]
[359024414,1745658633763,-500.0,0.00019799,2]
[359024415,1745658633773,-500.0,0.00019799,2]
[359024416,1745658633783,-500.0,0.00019799,2]
[359024417,1745658633794,-500.0,0.00019799,2]
[359024418,1745658633804,-363.6332504,0.00019799,2]
[359024419,1745658633814,-500.0,0.00019799,2]
[359024420,1745658633825,-500.0,0.00019799,2]
[359024421,1745658633835,-500.0,0.00019799,2]
[359024422,1745658633846,-500.0,0.00019799,2]
[359024423,1745658633861,-500.0,0.00019799,2]
[359024424,1745658633872,-500.0,0.00019799,2]
[359024425,1745658633881,-626.24072418,0.00019799,2]
[359024426,1745658633892,-675.8,0.00019799,2]
[359024427,1745658633902,-500.0,0.00019799,2]
[359024428,1745658633912,-500.0,0.00019799,2]
[359024429,1745658633923,-500.0,0.00019799,2]
[359024430,1745658633932,-500.0,0.00019799,2]
[359024431,1745658633943,-903.49,0.00019799,2]
[359024432,1745658633953,-500.0,0.00019799,2]
[359024433,1745658633963,-500.0,0.00019799,2]
[359024434,1745658633973,-1324.33,0.00019799,2]
[359024435,1745658633982,-500.0,0.00019799,2]
[359024436,1745658633992,-640.15,0.00019799,2]
[359024437,1745658634002,-500.0,0.00019799,2]
[359024438,1745658634012,-500.0,0.00019799,2]
[359024439,1745658634022,-500.0,0.00019799,2]
[359024440,1745658634032,-520.92,0.00019799,2]
[359024441,1745658634043,-521.219464,0.00019799,2]
[359024442,1745658634054,-500.0,0.00019799,2]
[359024443,1745658634064,-500.0,0.00019799,2]
[359024444,1745658634074,-500.0,0.00019799,2]
[359024445,1745658634084,-500.0,0.00019799,2]
[359024446,1745658634094,-500.0,0.00019799,2]
[359024447,1745658634108,-500.0,0.00019799,2]
[359024448,1745658634118,-500.0,0.00019799,2]
[359024449,1745658634128,-500.0,0.00019799,2]
[359024450,1745658634138,-500.0,0.00019799,2]
[359024451,1745658634149,-500.0,0.00019799,2]
[359024452,1745658634159,-500.0,0.00019799,2]
[359024453,1745658634169,-500.0,0.00019799,2]
[359024454,1745658634179,-500.0,0.00019799,2]
[359024455,1745658634188,-1278.52733536,0.00019799,2]
[359024456,1745658634202,-697.10266464,0.00019799,2]
[359024457,1745658634213,-500.0,0.00019799,2]
[359024458,1745658634224,-500.0,0.00019799,2]
[359024459,1745658634234,-620.39,0.00019799,2]
[359024460,1745658634244,-800.7,0.00019799,2]
[359024461,1745658634254,-500.0,0.00019799,2]
[359024462,1745658634264,-500.0,0.00019799,2]
[359024463,1745658634274,-500.0,0.00019799,2]
[359024464,1745658634284,-500.0,0.00019799,2]
[359024465,1745658634294,-647.89,0.00019799,2]
[359024466,1745658634304,-113.50208292,0.00019799,2]
[359024467,1745658634331,-386.49791708,0.00019799,2]
[359024468,1745658634343,-544.98,0.00019799,2]
[359024469,1745658634356,-39.51512425,0.00019799,2]
[359024470,1745658634370,-831.89487575,0.00019799,2]
[359024471,1745658634382,-500.0,0.00019799,2]
[359024472,1745658634393,-1032.64,0.00019799,2]
[359024473,1745658634404,-500.0,0.00019799,2]
[359024474,1745658634415,-500.0,0.00019799,2]
[359024475,1745658634427,-500.0,0.00019799,2]
[359024476,1745658634437,-873.64,0.00019799,2]
[359024477,1745658634448,-733.52,0.00019799,2]
[359024478,1745658634459,-500.0,0.00019799,2]
[359024479,1745658634470,-915.53,0.00019799,2]
[359024480,1745658634481,-957.42,0.00019799,2]
[359024481,1745658634491,-500.0,0.00019799,2]
[359024482,1745658634502,-505.55,0.00019799,2]
[359024483,1745658634513,-270.73729129,0.00019799,2]
[359024484,1745658634524,-589.84951449,0.00019799,2]
[359024485,1745658634535,-500.0,0.00019799,2]
[359024486,1745658634547,-586.31,0.00019799,2]
[359024487,1745658634558,-462.17137658,0.00019799,2]
[359024488,1745658634568,-931.85,0.00019799,2]
[359024489,1745658634579,-275.1,0.00019799,2]
[359024490,1745658634590,-500.0,0.00019799,2]
[359024491,1745658634604,-195.78860745,0.00019799,2]
[359024492,1745658634629,-304.21139255,0.00019799,2]
[359024493,1745658634641,-602.18763511,0.00019799,2]
[359024494,1745658634656,-81.53236489,0.00019799,2]
[359024495,1745658634667,-500.0,0.00019799,2]
[359024496,1745658634677,-28.91577695,0.00019799,2]
[359024497,1745658634691,-471.08422305,0.00019799,2]
[359024498,1745658634713,-500.0,0.00019799,2]
[359024499,1745658634725,-377.30053118,0.00019799,2]
[359024500,1745658634738,-122.69946882,0.00019799,2]
[359024501,1745658634748,-719.86,0.00019799,2]
[359024502,1745658634758,-231.34478121,0.00019799,2]
[359024503,1745658634771,-386.74521879,0.00019799,2]
[359024504,1745658634786,-500.0,0.00019799,2]
[359024505,1745658634796,-579.1048071,0.00019799,2]
[359024506,1745658634807,-802.9,0.00019799,2]
[359024507,1745658634818,-105.74244327,0.00019799,2]
[359024508,1745658634842,-394.25755673,0.00019799,2]
[359024509,1745658634853,-533.35758327,0.00019799,2]
[359024510,1745658634867,-396.71241673,0.00019799,2]
[359024511,1745658634877,-167.37898563,0.00019799,2]
[359024517,1745658637904,-358.33485164,0.00019798,2]
[359024518,1745658637921,-82.05187864,0.00019798,2]
[359024519,1745658637936,-10998.646373,0.00019798,2]
[359024520,1745658637952,-889.24,0.00019798,2]
[359024521,1745658637967,-332.62101437,0.00019799,2]
[359024522,1745658637980,-671.87,0.00019799,2]
[359024523,1745658637994,-1045.778921,0.00019799,2]
[359024524,1745658638008,-500.0,0.00019799,2]
[359024525,1745658638023,-500.0,0.00019799,2]
[359024526,1745658638036,-193.670619,0.00019799,2]
[359024527,1745658638050,-732.14,0.00019799,2]
[359024528,1745658638063,-500.0,0.00019799,2]
[359024529,1745658638077,-500.0,0.00019799,2]
[359024530,1745658638091,-500.0,0.00019799,2]
[359024531,1745658638106,-500.0,0.00019799,2]
[359024533,1745658638119,-500.0,0.00019799,2]
[359024536,1745658638132,-566.77652176,0.00019799,2]
[359024538,1745658638149,-488.87878624,0.00019799,2]
[359024541,1745658638163,-200.44489563,0.00019799,2]
[359024543,1745658638180,-789.89510437,0.00019799,2]
[359024546,1745658638195,-372.66249412,0.00019799,2]
[359024548,1745658638208,-500.0,0.00019799,2]
[359024551,1745658638221,-513.23289769,0.00019799,2]
[359024553,1745658638234,-500.0,0.00019799,2]
[359024555,1745658638248,-166.423983,0.00019799,2]
[359024558,1745658638261,-500.0,0.00019799,2]
[359024560,1745658638274,-572.07166205,0.00019799,2]
[359024562,1745658638287,-655.82,0.00019799,2]
[359024565,1745658638300,-500.0,0.00019799,2]
[359024567,1745658638313,-536.25,0.00019799,2]
[359024569,1745658638326,-552.20623637,0.00019799,2]
[359024571,1745658638340,-500.0,0.00019799,2]
[359024574,1745658638354,-500.0,0.00019799,2]
[359024576,1745658638367,-731.59,0.00019799,2]
[359024579,1745658638381,-500.0,0.00019799,2]
[359024581,1745658638395,-500.0,0.00019799,2]
[359024583,1745658638408,-796.27,0.00019799,2]
[359024586,1745658638421,-500.0,0.00019799,2]
[359024588,1745658638435,-500.0,0.00019799,2]
[359024590,1745658638448,-500.0,0.00019799,2]
[359024593,1745658638461,-500.0,0.00019799,2]
[359024595,1745658638475,-1339.99,0.00019799,2]
[359024597,1745658638488,-553.74,0.00019799,2]
[359024600,1745658638501,-627.76187215,0.00019799,2]
[359024602,1745658638514,-500.0,0.00019799,2]
[359024604,1745658638526,-1599.47,0.00019799,2]
[359024607,1745658638539,-500.0,0.00019799,2]
[359024609,1745658638551,-500.0,0.00019799,2]
[359024611,1745658638564,-500.0,0.00019799,2]
[359024613,1745658638577,-500.0,0.00019799,2]
[359024616,1745658638589,-223.89475099,0.00019799,2]
[359024618,1745658638602,-1199.98,0.00019799,2]
[359024620,1745658638615,-500.0,0.00019799,2]
[359024623,1745658638628,-500.0,0.00019799,2]
[359024625,1745658638643,-500.0,0.00019799,2]
[359024627,1745658638656,-500.0,0.00019799,2]
[359024629,1745658638669,-650.74,0.00019799,2]
[359024632,1745658638683,-500.0,0.00019799,2]
[359024634,1745658638696,-500.0,0.00019799,2]
[359024636,1745658638709,-500.0,0.00019799,2]
[359024639,1745658638724,-500.0,0.00019799,2]
[359024641,1745658638739,-500.0,0.00019799,2]
[359024644,1745658638752,-1433.94,0.00019799,2]
[359024646,1745658638765,-500.0,0.00019799,2]
[359024648,1745658638777,-500.0,0.00019799,2]
[359024650,1745658638789,-500.0,0.00019799,2]
[359024653,1745658638802,-500.0,0.00019799,2]
[359024655,1745658638814,-501.83571387,0.00019799,2]
[359024656,1745658638827,-500.0,0.00019799,2]
[359024657,1745658638839,-530.66335049,0.00019799,2]
[359024658,1745658638852,-154.18195287,0.00019799,2]
[359024659,1745658638865,-1288.7,0.00019799,2]
[359024660,1745658638877,-500.0,0.00019799,2]
[359024661,1745658638889,-500.0,0.00019799,2]
[359024662,1745658638902,-485.82820109,0.00019799,2]
[359024663,1745658638915,-814.96,0.00019799,2]
[359024664,1745658638927,-529.5,0.00019799,2]
[359024665,1745658638940,-500.0,0.00019799,2]
[359024666,1745658638953,-282.97046141,0.00019799,2]
[359024667,1745658638972,-206.04224192,0.00019799,2]
[359024668,1745658638984,-509.98689018,0.00019799,2]